Workbook

Sheet Points
B3: The main points are Using MAX adn MIN
B5: Use MIN in Maturities
B7: Include MIN AND MAX in Cash Flow Statement
B9: DSRA Changes and Formulas After Sweep

Sheet Cash Sweep Exercise Blank
A1: Cash Sweep
A3: Assumptions
B4: Base Cash Flow | E4: 300 | H4: DSCR
B5: Year of Crash | E5: 20 | H5: PLCR
B6: Percent Reduction in Crash | E6: 0
B8: Debt Commitment | E8: 900
B9: Debt Tenor | E9: 15
B10: Interest Rate | E10: 0.1
B11: Cash Sweep Percent | E11: 0
A13: Operating Analysis
B14: Period
B15: Post Crash Switch
B16: Cash Flow
A18: Debt Schedule
B19: Opening Balance
B20: Less: Scheduled Maturities - INCLUDE MIN FUNCTION
B21: Less: Cash Sweep - TAKE FROM BELOW
B22: Closing Balance
B23: Interest
B25: Defaulted Debt
C26: Opening Balance
C27: Add: Defaulted - FROM BELOW
C28: Less: Repayment of Default - FROM BELOW
C29: Closing Balance
C30: Interest
A33: Cash Flow Analysis
B34: Cash Sweep %
B36: Operating Cash Flow
B37: Less: Scheduled Maturities
B38: Less: Interest
C39: Cash Before Sweep
B40: Less: Cash Flow Sweep - USE MAX AND MIN
C41: Cash after Sweep
B42: Add: Default on Debt - USE MAX(-CF,0)
B43: Less: Repayment of Default - USE MAX AND MIN
C44: Dividends
A46: Ratios
B47: DSCR
C48: CFADS
C49: Debt Service
D50: DSCR
B52: PLCR
C53: NPV of Cash Flow
C54: Debt Issued
C55: PLCR

Sheet Completed Sweep Exercise
A1: Cash Sweep
A3: Assumptions
B4: Base Cash Flow | E4: 300 | H4: DSCR | I4: =F50 -> 2
B5: Year of Crash | E5: 20 | H5: PLCR | I5: =F55 -> 2.535359835
B6: Percent Reduction in Crash | E6: 0
B8: Debt Commitment | E8: 900
B9: Debt Tenor | E9: 15
B10: Interest Rate | E10: 0.1
B11: Cash Sweep Percent | E11: 0
A13: Operating Analysis
B14: Period | G14: 0 | H14: =G14+1 -> 1 | I14: =H14+1 -> 2 | J14: 3 | K14: 4 | L14: 5 | M14: 6 | N14: 7 | O14: 8 | P14: 9 | Q14: 10 | R14: 11 | S14: 12 | T14: 13 | U14: 14 | V14: 15
B15: Post Crash Switch | E15: =E5 -> 20 | H15: =H14>=$E$15 -> FALSE | I15: =I14>=$E$15 -> FALSE | J15: FALSE | K15: FALSE | L15: FALSE | M15: FALSE | N15: FALSE | O15: FALSE | P15: FALSE | Q15: FALSE | R15: FALSE | S15: FALSE | T15: FALSE | U15: FALSE | V15: FALSE
B16: Cash Flow | E16: =E4 -> 300 | F16: =E6 -> 0 | H16: =$E$16*(1-$F$16*H15) -> 300 | I16: =$E$16*(1-$F$16*I15) -> 300 | J16: 300 | K16: 300 | L16: 300 | M16: 300 | N16: 300 | O16: 300 | P16: 300 | Q16: 300 | R16: 300 | S16: 300 | T16: 300 | U16: 300 | V16: 300
A18: Debt Schedule
B19: Opening Balance | H19: =G22 -> 900 | I19: =H22 -> 840 | J19: 780 | K19: 720 | L19: 660 | M19: 600 | N19: 540 | O19: 480 | P19: 420 | Q19: 360 | R19: 300 | S19: 240 | T19: 180 | U19: 120 | V19: 60
B20: Less: Scheduled Maturities | E20: =E9 -> 15 | H20: =MIN(($G$22/$E$20),H19) -> 60 | I20: =MIN(($G$22/$E$20),I19) -> 60 | J20: 60 | K20: 60 | L20: 60 | M20: 60 | N20: 60 | O20: 60 | P20: 60 | Q20: 60 | R20: 60 | S20: 60 | T20: 60 | U20: 60 | V20: 60
B21: Less: Cash Sweep | H21: =H40 -> 0 | I21: =I40 -> 0 | J21: 0 | K21: 0 | L21: 0 | M21: 0 | N21: 0 | O21: 0 | P21: 0 | Q21: 0 | R21: 0 | S21: 0 | T21: 0 | U21: 0 | V21: 0
B22: Closing Balance | E22: =E8 -> 900 | G22: =E22 -> 900 | H22: =H19-H20-H21 -> 840 | I22: =I19-I20-I21 -> 780 | J22: 720 | K22: 660 | L22: 600 | M22: 540 | N22: 480 | O22: 420 | P22: 360 | Q22: 300 | R22: 240 | S22: 180 | T22: 120 | U22: 60 | V22: 0
B23: Interest | E23: =E10 -> 0.1 | H23: =$E$23*H19 -> 90 | I23: =$E$23*I19 -> 84 | J23: 78 | K23: 72 | L23: 66 | M23: 60 | N23: 54 | O23: 48 | P23: 42 | Q23: 36 | R23: 30 | S23: 24 | T23: 18 | U23: 12 | V23: 6
B25: Defaulted Debt
C26: Opening Balance | H26: =G29 -> 0 | I26: =H29 -> 0 | J26: 0 | K26: 0 | L26: 0 | M26: 0 | N26: 0 | O26: 0 | P26: 0 | Q26: 0 | R26: 0 | S26: 0 | T26: 0 | U26: 0 | V26: 0
C27: Add: Defaulted | H27: =H42 -> 0 | I27: =I42 -> 0 | J27: 0 | K27: 0 | L27: 0 | M27: 0 | N27: 0 | O27: 0 | P27: 0 | Q27: 0 | R27: 0 | S27: 0 | T27: 0 | U27: 0 | V27: 0
C28: Less: Repayment of Default | H28: =H43 -> 0 | I28: =I43 -> 0 | J28: 0 | K28: 0 | L28: 0 | M28: 0 | N28: 0 | O28: 0 | P28: 0 | Q28: 0 | R28: 0 | S28: 0 | T28: 0 | U28: 0 | V28: 0
C29: Closing Balance | H29: =H26+H27-H28 -> 0 | I29: =I26+I27-I28 -> 0 | J29: 0 | K29: 0 | L29: 0 | M29: 0 | N29: 0 | O29: 0 | P29: 0 | Q29: 0 | R29: 0 | S29: 0 | T29: 0 | U29: 0 | V29: 0
C30: Interest | E30: =E23 -> 0.1 | H30: =$E$30*H26 -> 0 | I30: =$E$30*I26 -> 0 | J30: 0 | K30: 0 | L30: 0 | M30: 0 | N30: 0 | O30: 0 | P30: 0 | Q30: 0 | R30: 0 | S30: 0 | T30: 0 | U30: 0 | V30: 0
A33: Cash Flow Analysis
B34: Cash Sweep % | H34: =$E$11 -> 0 | I34: =$E$11 -> 0 | J34: 0 | K34: 0 | L34: 0 | M34: 0 | N34: 0 | O34: 0 | P34: 0 | Q34: 0 | R34: 0 | S34: 0 | T34: 0 | U34: 0 | V34: 0
B36: Operating Cash Flow | H36: =H16 -> 300 | I36: =I16 -> 300 | J36: 300 | K36: 300 | L36: 300 | M36: 300 | N36: 300 | O36: 300 | P36: 300 | Q36: 300 | R36: 300 | S36: 300 | T36: 300 | U36: 300 | V36: 300
B37: Less: Scheduled Maturities | H37: =H20 -> 60 | I37: =I20 -> 60 | J37: 60 | K37: 60 | L37: 60 | M37: 60 | N37: 60 | O37: 60 | P37: 60 | Q37: 60 | R37: 60 | S37: 60 | T37: 60 | U37: 60 | V37: 60
B38: Less: Interest | H38: =H23+H30 -> 90 | I38: =I23+I30 -> 84 | J38: 78 | K38: 72 | L38: 66 | M38: 60 | N38: 54 | O38: 48 | P38: 42 | Q38: 36 | R38: 30 | S38: 24 | T38: 18 | U38: 12 | V38: 6
C39: Cash Before Sweep | H39: =H36-H37-H38 -> 150 | I39: =I36-I37-I38 -> 156 | J39: 162 | K39: 168 | L39: 174 | M39: 180 | N39: 186 | O39: 192 | P39: 198 | Q39: 204 | R39: 210 | S39: 216 | T39: 222 | U39: 228 | V39: 234
B40: Less: Cash Flow Sweep | H40: =MIN(MAX(H39,0)*$H$34,H19-H37) -> 0 | I40: =MIN(MAX(I39,0)*$H$34,I19-I37) -> 0 | J40: 0 | K40: 0 | L40: 0 | M40: 0 | N40: 0 | O40: 0 | P40: 0 | Q40: 0 | R40: 0 | S40: 0 | T40: 0 | U40: 0 | V40: 0
C41: Cash after Sweep | H41: =H39-H40 -> 150 | I41: =I39-I40 -> 156 | J41: 162 | K41: 168 | L41: 174 | M41: 180 | N41: 186 | O41: 192 | P41: 198 | Q41: 204 | R41: 210 | S41: 216 | T41: 222 | U41: 228 | V41: 234
B42: Add: Default on Debt | H42: =MAX(-H41,0) -> 0 | I42: =MAX(-I41,0) -> 0 | J42: 0 | K42: 0 | L42: 0 | M42: 0 | N42: 0 | O42: 0 | P42: 0 | Q42: 0 | R42: 0 | S42: 0 | T42: 0 | U42: 0 | V42: 0
B43: Less: Repayment of Default | H43: =MIN(H26,MAX(H41,0)) -> 0 | I43: =MIN(I26,MAX(I41,0)) -> 0 | J43: 0 | K43: 0 | L43: 0 | M43: 0 | N43: 0 | O43: 0 | P43: 0 | Q43: 0 | R43: 0 | S43: 0 | T43: 0 | U43: 0 | V43: 0
C44: Dividends | H44: =H41+H42-H43 -> 150 | I44: =I41+I42-I43 -> 156 | J44: 162 | K44: 168 | L44: 174 | M44: 180 | N44: 186 | O44: 192 | P44: 198 | Q44: 204 | R44: 210 | S44: 216 | T44: 222 | U44: 228 | V44: 234
A46: Ratios
B47: DSCR
C48: CFADS | H48: =H36 -> 300 | I48: =I36 -> 300 | J48: 300 | K48: 300 | L48: 300 | M48: 300 | N48: 300 | O48: 300 | P48: 300 | Q48: 300 | R48: 300 | S48: 300 | T48: 300 | U48: 300 | V48: 300
C49: Debt Service | H49: =H37+H38 -> 150 | I49: =I37+I38 -> 144 | J49: 138 | K49: 132 | L49: 126 | M49: 120 | N49: 114 | O49: 108 | P49: 102 | Q49: 96 | R49: 90 | S49: 84 | T49: 78 | U49: 72 | V49: 66
D50: DSCR | E50: Min | F50: =MIN(H50:V50) -> 2 | H50: =IF(H49>0.1,H48/H49) -> 2 | I50: =IF(I49>0.1,I48/I49) -> 2.083333333 | J50: 2.173913043 | K50: 2.272727273 | L50: 2.380952381 | M50: 2.5 | N50: 2.631578947 | O50: 2.777777778 | P50: 2.941176471 | Q50: 3.125 | R50: 3.333333333 | S50: 3.571428571 | T50: 3.846153846 | U50: 4.166666667 | V50: 4.545454545
B52: PLCR
C53: NPV of Cash Flow | E53: =E10 -> 0.1 | F53: =NPV(E53,H48:V48) -> 2281.823852
C54: Debt Issued | F54: =E8 -> 900
C55: PLCR | F55: =F53/F54 -> 2.535359835

Sheet Sweep Before DSRA - Works
A1: Cash Sweep and DSRA
B3: DSRA Periods | E3: 1
B4: Cash Sweep Percent | E4: 0.5
B6: Repayments Scheduled | G6: 100 | H6: 100 | I6: 100 | J6: 100 | K6: 100 | L6: 100 | M6: 100 | N6: 100 | O6: 100
B7: Debt | F7: =SUM(6:6) -> 900
B9: EBITDA | G9: 300 | H9: =G9 -> 300 | I9: =H9 -> 300 | J9: 300 | K9: 300 | L9: 300 | M9: 300 | N9: 300 | O9: 300
A11: Debt Schedule
B12: Opening Balance | G12: =F15 -> 900 | H12: =G15 -> 745 | I12: 582.25 | J12: 411.3625 | K12: 231.930625 | L12: 43.52715625 | M12: 0 | N12: 0 | O12: 0
B13: Less: Repayments | G13: =MIN(G6,G12) -> 100 | H13: =MIN(H6,H12) -> 100 | I13: 100 | J13: 100 | K13: 100 | L13: 43.52715625 | M13: 0 | N13: 0 | O13: 0
B14: Less: Cash Sweep | G14: =G38 -> 55 | H14: =H38 -> 62.75 | I14: 70.8875 | J14: 79.431875 | K14: 88.40346875 | L14: 0 | M14: 0 | N14: 0 | O14: 0
B15: Closing Balance | F15: =F7 -> 900 | G15: =G12-G13-G14 -> 745 | H15: =H12-H13-H14 -> 582.25 | I15: 411.3625 | J15: 231.930625 | K15: 43.52715625 | L15: 0 | M15: 0 | N15: 0 | O15: 0
B17: Interest Rate | F17: 0.1 | G17: =$F$17 -> 0.1 | H17: =$F$17 -> 0.1 | I17: 0.1 | J17: 0.1 | K17: 0.1 | L17: 0.1 | M17: 0.1 | N17: 0.1 | O17: 0.1
B18: Interest Expense | G18: =G17*G12 -> 90 | H18: =H17*H12 -> 74.5 | I18: 58.225 | J18: 41.13625 | K18: 23.1930625 | L18: 4.352715625 | M18: 0 | N18: 0 | O18: 0
A20: DSRA
B21: Debt Service | F21: =F18+F13 -> 0 | G21: =G18+G13 -> 190 | H21: =H18+H13 -> 174.5 | I21: 158.225 | J21: 141.13625 | K21: 123.1930625 | L21: 47.87987188 | M21: 0 | N21: 0 | O21: 0
B22: Forward Debt Service - Offset | F22: =IFERROR(SUM(OFFSET(F21,0,1,1,$E$3)),0) -> 190 | G22: =IFERROR(SUM(OFFSET(G21,0,1,1,$E$3)),0) -> 174.5 | H22: 158.225 | I22: 141.13625 | J22: 123.1930625 | K22: 47.87987188 | L22: 0 | M22: 0 | N22: 0 | O22: 0
B23: Required Debt Service | F23: =F22 -> 190 | G23: =G22 -> 174.5 | H23: =H22 -> 158.225 | I23: 141.13625 | J23: 123.1930625 | K23: 47.87987188 | L23: 0 | M23: 0 | N23: 0 | O23: 0
B24: Opening DSRA | F24: =F28 -> 0 | G24: =G28 -> 190 | H24: =H28 -> 174.5 | I24: 158.225 | J24: 141.13625 | K24: 123.1930625 | L24: 47.87987188 | M24: 0 | N24: 0 | O24: 0
B25: Required Addition | F25: =F23-F24 -> 190 | G25: =G23-G24 -> -15.5 | H25: =H23-H24 -> -16.275 | I25: -17.08875 | J25: -17.9431875 | K25: -75.31319062 | L25: -47.87987188 | M25: 0 | N25: 0 | O25: 0
B28: Opening DSRSA | F28: =D30 -> 0 | G28: =F30 -> 190 | H28: 174.5 | I28: 158.225 | J28: 141.13625 | K28: 123.1930625 | L28: 47.87987188 | M28: 0 | N28: 0 | O28: 0
B29: Add: Net Change in Required | F29: =F25 -> 190 | G29: =G25 -> -15.5 | H29: -16.275 | I29: -17.08875 | J29: -17.9431875 | K29: -75.31319062 | L29: -47.87987188 | M29: 0 | N29: 0 | O29: 0
B30: Closing Balance | F30: =SUM(F28:F29) -> 190 | G30: =SUM(G28:G29) -> 174.5 | H30: 158.225 | I30: 141.13625 | J30: 123.1930625 | K30: 47.87987188 | L30: 0 | M30: 0 | N30: 0 | O30: 0
A32: Cash Flow
B33: EBITDA | G33: =G9 -> 300 | H33: =H9 -> 300 | I33: 300 | J33: 300 | K33: 300 | L33: 300 | M33: 300 | N33: 300 | O33: 300
B34: CFADS | G34: =G33 -> 300 | H34: =H33 -> 300 | I34: 300 | J34: 300 | K34: 300 | L34: 300 | M34: 300 | N34: 300 | O34: 300
C35: Less: Scheduled Debt Repayment | G35: =G13 -> 100 | H35: 100 | I35: 100 | J35: 100 | K35: 100 | L35: 43.52715625 | M35: 0 | N35: 0 | O35: 0
C36: Less: Interest | G36: =G18 -> 90 | H36: 74.5 | I36: 58.225 | J36: 41.13625 | K36: 23.1930625 | L36: 4.352715625 | M36: 0 | N36: 0 | O36: 0
B37: Cash Flow after DS | G37: =G34-G35-G36 -> 110 | H37: =H34-H35-H36 -> 125.5 | I37: 141.775 | J37: 158.86375 | K37: 176.8069375 | L37: 252.1201281 | M37: 300 | N37: 300 | O37: 300
C38: Less: Sweep | F38: =E4 -> 0.5 | G38: =MIN($F$38*G37,G12-G13) -> 55 | H38: =MIN($F$38*H37,H12-H13) -> 62.75 | I38: 70.8875 | J38: 79.431875 | K38: 88.40346875 | L38: 0 | M38: 0 | N38: 0 | O38: 0
C39: Add: Reduction in DSRA AFTER | G39: =G29 -> -15.5 | H39: -16.275 | I39: -17.08875 | J39: -17.9431875 | K39: -75.31319062 | L39: -47.87987188 | M39: 0 | N39: 0 | O39: 0
B40: Dividends | G40: =G37-G38-G39 -> 70.5 | H40: =H37-H38-H39 -> 79.025 | I40: 87.97625 | J40: 97.3750625 | K40: 163.7166594 | L40: 300 | M40: 300 | N40: 300 | O40: 300

Sheet Sweep After DSRA - Problem
A1: Cash Sweep and DSRA
B3: DSRA Months | E3: 1
B4: Cash Sweep Percent | E4: 0.5
B6: Repayments Scheduled | F6: 100 | G6: 100 | H6: 100 | I6: 100 | J6: 100 | K6: 100 | L6: 100 | M6: 100 | N6: 100
B7: Debt | E7: =SUM(6:6) -> 900
B8: Cash Flow | F8: 300 | G8: =F8 -> 300 | H8: =G8 -> 300 | I8: 300 | J8: 300 | K8: 300 | L8: 300 | M8: 300 | N8: 300
A10: Debt Schedule
B11: Opening Balance | F11: =E14 -> 900 | G11: =F14 -> 745 | H11: 582.25 | I11: 411.3625 | J11: 231.930625 | K11: 43.52715625 | L11: 0 | M11: 0 | N11: 0
B12: Less: Repayments | F12: =F6 -> 100 | G12: =G6 -> 100 | H12: 100 | I12: 100 | J12: 100 | K12: 100 | L12: 100 | M12: 100 | N12: 100
B13: Less: Cash Sweep | F13: =F38 -> 55 | G13: =G38 -> 62.75 | H13: 70.8875 | I13: 79.431875 | J13: 88.40346875 | K13: -56.47284375 | L13: -100 | M13: -100 | N13: -100
B14: Closing Balance | E14: =E7 -> 900 | F14: =F11-F12-F13 -> 745 | G14: =G11-G12-G13 -> 582.25 | H14: 411.3625 | I14: 231.930625 | J14: 43.52715625 | K14: 0 | L14: 0 | M14: 0 | N14: 0
B16: Interest Rate | E16: 0.1 | F16: =$E$16 -> 0.1 | G16: =$E$16 -> 0.1 | H16: 0.1 | I16: 0.1 | J16: 0.1 | K16: 0.1 | L16: 0.1 | M16: 0.1 | N16: 0.1
B17: Interest Expense | F17: =F16*F11 -> 90 | G17: =G16*G11 -> 74.5 | H17: 58.225 | I17: 41.13625 | J17: 23.1930625 | K17: 4.352715625 | L17: 0 | M17: 0 | N17: 0
A19: DSRA
B20: Debt Service | E20: =E17+E12 -> 0 | F20: =F17+F12 -> 190 | G20: =G17+G12 -> 174.5 | H20: 158.225 | I20: 141.13625 | J20: 123.1930625 | K20: 104.3527156 | L20: 100 | M20: 100 | N20: 100
B21: Forward Debt Service - Offset | E21: =SUM(OFFSET(E20,0,1,1,$E$3)) -> 190 | F21: =SUM(OFFSET(F20,0,1,1,$E$3)) -> 174.5 | G21: =SUM(OFFSET(G20,0,1,1,$E$3)) -> 158.225 | H21: 141.13625 | I21: 123.1930625 | J21: 104.3527156 | K21: 100 | L21: 100 | M21: 100 | N21: 0
B22: Required Debt Service | E22: =E21 -> 190 | F22: =F21 -> 174.5 | G22: =G21 -> 158.225 | H22: 141.13625 | I22: 123.1930625 | J22: 104.3527156 | K22: 100 | L22: 100 | M22: 100 | N22: 0
B23: Opening DSRA | E23: =E27 -> 0 | F23: =F27 -> 190 | G23: =G27 -> 174.5 | H23: 158.225 | I23: 141.13625 | J23: 123.1930625 | K23: 104.3527156 | L23: 100 | M23: 100 | N23: 100
B24: Required Addition | E24: =E22-E23 -> 190 | F24: =F22-F23 -> -15.5 | G24: =G22-G23 -> -16.275 | H24: -17.08875 | I24: -17.9431875 | J24: -18.84034687 | K24: -4.352715625 | L24: 0 | M24: 0 | N24: -100
B27: Opening DSRSA | E27: =D29 -> 0 | F27: =E29 -> 190 | G27: 174.5 | H27: 158.225 | I27: 141.13625 | J27: 123.1930625 | K27: 104.3527156 | L27: 100 | M27: 100 | N27: 100
B28: Add: Net Change in Required | E28: =E24 -> 190 | F28: =F24 -> -15.5 | G28: -16.275 | H28: -17.08875 | I28: -17.9431875 | J28: -18.84034687 | K28: -4.352715625 | L28: 0 | M28: 0 | N28: -100
B29: Closing Balance | E29: =SUM(E27:E28) -> 190 | F29: =SUM(F27:F28) -> 174.5 | G29: 158.225 | H29: 141.13625 | I29: 123.1930625 | J29: 104.3527156 | K29: 100 | L29: 100 | M29: 100 | N29: 0
A31: Cash Flow
B32: EBITDA | F32: =F8 -> 300 | G32: =G8 -> 300 | H32: 300 | I32: 300 | J32: 300 | K32: 300 | L32: 300 | M32: 300 | N32: 300
B33: Add: Reduction in DSRA
B34: CFADS | F34: =F32-F33 -> 300 | G34: =G32-G33 -> 300 | H34: 300 | I34: 300 | J34: 300 | K34: 300 | L34: 300 | M34: 300 | N34: 300
B35: Less: Scheduled Debt Repayment | F35: =F12 -> 100 | G35: =G12 -> 100 | H35: 100 | I35: 100 | J35: 100 | K35: 100 | L35: 100 | M35: 100 | N35: 100
B36: Less: Interest | F36: =F17 -> 90 | G36: =G17 -> 74.5 | H36: 58.225 | I36: 41.13625 | J36: 23.1930625 | K36: 4.352715625 | L36: 0 | M36: 0 | N36: 0
B37: Cash Flow after DS | F37: =F34-F35-F36 -> 110 | G37: =G34-G35-G36 -> 125.5 | H37: 141.775 | I37: 158.86375 | J37: 176.8069375 | K37: 195.6472844 | L37: 200 | M37: 200 | N37: 200
B38: Less: Sweep | E38: =E4 -> 0.5 | F38: =MIN($E$38*F37,F11-F12) -> 55 | G38: =MIN($E$38*G37,G11-G12) -> 62.75 | H38: 70.8875 | I38: 79.431875 | J38: 88.40346875 | K38: -56.47284375 | L38: -100 | M38: -100 | N38: -100
B39: Dividends | F39: =F37-F38 -> 55 | G39: =G37-G38 -> 62.75 | H39: 70.8875 | I39: 79.431875 | J39: 88.40346875 | K39: 252.1201281 | L39: 300 | M39: 300 | N39: 300

Sheet Sheet2

Sheet Sheet3
F8: www.financeenergyinstitute.com
